[Event "Fast Chess"]
[Site "ChessKid.com"]
[Date "2020.04.06"]
[Round "2"]
[White "Li, Tobias"]
[Black "Sasse, Gabriel"]
[Result "0-1"]
[ECO "C57"]
[WhiteElo "1218"]
[BlackElo "1287"]
[PlyCount "92"]
[EventDate "2020.??.??"]
[TimeControl "900"]
[WhiteClock "0:12:09"]
[BlackClock "0:10:34"]

1. e4 {[%emt 0:00:00]} e5 {[%emt 0:00:01]} 2. Nf3 {[%emt 0:00:02]} Nc6 {
[%emt 0:00:01]} 3. Nc3 {[%emt 0:00:08]} Nf6 {[%emt 0:00:01]} 4. Bc4 {[%emt 0:
00:03]} Bc5 {[%emt 0:00:01]} 5. Ng5 {[%emt 0:00:02]} O-O {[%emt 0:00:01]} 6.
Nxf7 {[%emt 0:00:01]} Rxf7 {[%emt 0:00:01]} 7. Bxf7+ {[%emt 0:00:02]} Kxf7 {
[%emt 0:00:01]} 8. O-O {[%emt 0:00:02]} Ng8 {[%emt 0:00:09]} 9. d3 {[%emt 0:00:
05]} Qh4 {[%emt 0:00:10]} 10. Qf3+ {[%emt 0:00:04]} Nf6 {[%emt 0:00:08]} 11.
Re1 {[%emt 0:00:15]} d5 {[%emt 0:00:02]} 12. exd5 {[%emt 0:00:16]} Bd6 {
[%emt 0:00:05]} 13. dxc6 {[%emt 0:00:02]} e4 {[%emt 0:00:05]} 14. Qh3 {[%emt 0:
00:10]} Qf4 {[%emt 0:00:09]} 15. Qg3 {[%emt 0:00:08]} Qxg3 {[%emt 0:00:05]} 16.
hxg3 {[%emt 0:00:03]} bxc6 {[%emt 0:00:01]} 17. dxe4 {[%emt 0:00:05]} Bb4 {
[%emt 0:00:04]} 18. Bd2 {[%emt 0:00:04]} Ng4 {[%emt 0:00:04]} 19. a3 {[%emt 0:
00:10]} Bc5 {[%emt 0:00:01]} 20. Be3 {[%emt 0:00:26]} Nxe3 {[%emt 0:00:11]} 21.
fxe3 {[%emt 0:00:02]} Bg4 {[%emt 0:00:04]} 22. Rf1+ {[%emt 0:00:08]} Kg6 {
[%emt 0:00:03]} 23. Rfe1 {[%emt 0:00:05]} Bd6 {[%emt 0:00:15]} 24. Kh2 {
[%emt 0:00:03]} Rf8 {[%emt 0:00:08]} 25. Rf1 {[%emt 0:00:03]} Re8 {[%emt 0:00:
02]} 26. Rad1 {[%emt 0:00:39]} Bc5 {[%emt 0:00:02]} 27. Rf4 {[%emt 0:00:08]}
Bxd1 {[%emt 0:00:03]} 28. Nxd1 {[%emt 0:00:03]} a6 {[%emt 0:00:08]} 29. Rg4+ {
[%emt 0:00:05]} Kf7 {[%emt 0:00:03]} 30. Rf4+ {[%emt 0:00:07]} Kg8 {[%emt 0:00:
03]} 31. b4 {[%emt 0:00:10]} Bd6 {[%emt 0:00:06]} 32. Nc3 {[%emt 0:00:05]} Bxf4
{[%emt 0:00:02]} 33. exf4 {[%emt 0:00:00]} Rd8 {[%emt 0:00:05]} 34. Kg1 {
[%emt 0:00:17]} Rd2 {[%emt 0:00:02]} 35. Kf1 {[%emt 0:00:02]} Rxc2 {[%emt 0:00:
02]} 36. Nb1 {[%emt 0:00:01]} Rc1+ {[%emt 0:00:02]} 37. Kf2 {[%emt 0:00:02]}
Rxb1 {[%emt 0:00:01]} 38. Ke3 {[%emt 0:00:01]} Re1+ {[%emt 0:00:02]} 39. Kf2 {
[%emt 0:00:02]} Ra1 {[%emt 0:00:02]} 40. e5 {[%emt 0:00:03]} Rxa3 {[%emt 0:00:
02]} 41. g4 {[%emt 0:00:03]} Kf7 {[%emt 0:00:04]} 42. g3 {[%emt 0:00:02]} Rb3 {
[%emt 0:00:04]} 43. Kg2 {[%emt 0:00:05]} Rxb4 {[%emt 0:00:01]} 44. g5 {[%emt 0:
00:02]} a5 {[%emt 0:00:02]} 45. Kf3 {[%emt 0:00:03]} a4 {[%emt 0:00:01]} 46.
Ke3 {[%emt 0:00:00]} a3 {[%emt 0:00:01] LimeFarActor won by resignation} 0-1

[Event "Fast Chess"]
[Site "ChessKid.com"]
[Date "2020.04.06"]
[Round "2"]
[White "Hlinka, Patricia"]
[Black "Hlinka, Patrick"]
[Result "0-1"]
[ECO "A40"]
[WhiteElo "989"]
[BlackElo "1112"]
[PlyCount "70"]
[EventDate "2020.??.??"]
[TimeControl "900"]
[WhiteClock "0:10:45"]
[BlackClock "0:10:08"]

1. d4 {[%emt 0:00:00]} e5 {[%emt 0:00:03]} 2. dxe5 {[%emt 0:00:04]} Bc5 {
[%emt 0:00:11]} 3. Nh3 {[%emt 0:00:07]} Qh4 {[%emt 0:00:07]} 4. Kd2 {[%emt 0:
00:04]} Qd4+ {[%emt 0:00:07]} 5. Ke1 {[%emt 0:00:07]} Qxd1+ {[%emt 0:00:05]} 6.
Kxd1 {[%emt 0:00:01]} d6 {[%emt 0:00:10]} 7. exd6 {[%emt 0:00:01]} cxd6 {
[%emt 0:00:07]} 8. e4 {[%emt 0:00:05]} Bg4+ {[%emt 0:00:04]} 9. Ke1 {[%emt 0:
00:02]} Bb4+ {[%emt 0:00:07]} 10. Bd2 {[%emt 0:00:21]} Bc5 {[%emt 0:00:01]} 11.
Ng1 {[%emt 0:00:07]} Bd4 {[%emt 0:00:14]} 12. Bc1 {[%emt 0:00:05]} Nc6 {
[%emt 0:00:04]} 13. f3 {[%emt 0:00:06]} Bh5 {[%emt 0:00:03]} 14. g4 {[%emt 0:
00:03]} Bg6 {[%emt 0:00:12]} 15. Nh3 {[%emt 0:00:06]} O-O-O {[%emt 0:00:13]}
16. f4 {[%emt 0:00:12]} Bxe4 {[%emt 0:00:07]} 17. Rg1 {[%emt 0:00:13]} Bxg1 {
[%emt 0:00:04]} 18. Nxg1 {[%emt 0:00:06]} Nf6 {[%emt 0:00:06]} 19. g5 {[%emt 0:
00:02]} Ng4 {[%emt 0:00:03]} 20. h3 {[%emt 0:00:03]} Nh2 {[%emt 0:00:02]} 21.
Bc4 {[%emt 0:00:10]} Rhe8 {[%emt 0:00:02]} 22. f5 {[%emt 0:00:08]} d5 {[%emt 0:
00:03]} 23. Bb3 {[%emt 0:00:07]} Bxf5+ {[%emt 0:00:11]} 24. Kd1 {[%emt 0:00:16]
} Re4 {[%emt 0:00:18]} 25. Kd2 {[%emt 0:00:13]} Rde8 {[%emt 0:00:02]} 26. Kd3 {
[%emt 0:00:03]} Rd4+ {[%emt 0:00:07]} 27. Kc3 {[%emt 0:00:05]} f6 {[%emt 0:00:
18]} 28. gxf6 {[%emt 0:00:05]} g5 {[%emt 0:00:02]} 29. f7 {[%emt 0:00:17]} Rf8
{[%emt 0:00:02]} 30. Bxg5 {[%emt 0:00:16]} Rxf7 {[%emt 0:00:03]} 31. Bc1 {
[%emt 0:00:08]} Rg7 {[%emt 0:00:02]} 32. Ne2 {[%emt 0:00:05]} Nf1 {[%emt 0:00:
13]} 33. Bd2 {[%emt 0:00:50]} Ng3 {[%emt 0:00:37]} 34. Nxg3 {[%emt 0:00:05]}
Rxg3+ {[%emt 0:00:03]} 35. Be3 {[%emt 0:00:09]} Rxe3# {[%emt 0:00:03]
GoldMusicalTaxi won by checkmate} 0-1

[Event "Fast Chess"]
[Site "ChessKid.com"]
[Date "2020.04.06"]
[Round "2"]
[White "Hessenberger, Oliver"]
[Black "Li, Patrick"]
[Result "1-0"]
[ECO "C64"]
[WhiteElo "1098"]
[BlackElo "912"]
[PlyCount "39"]
[EventDate "2020.??.??"]
[TimeControl "900"]
[WhiteClock "0:12:48"]
[BlackClock "0:13:00"]

1. e4 {[%emt 0:00:00]} e5 {[%emt 0:00:00]} 2. Nf3 {[%emt 0:00:04]} Nc6 {
[%emt 0:00:05]} 3. Bb5 {[%emt 0:00:00]} Bc5 {[%emt 0:00:11]} 4. Bxc6 {[%emt 0:
00:06]} Nf6 {[%emt 0:00:00]} 5. Bb5 {[%emt 0:00:12]} Ng4 {[%emt 0:00:16]} 6.
O-O {[%emt 0:00:09]} Nxf2 {[%emt 0:00:03]} 7. Qe1 {[%emt 0:00:05]} Nxe4+ {
[%emt 0:00:15]} 8. d4 {[%emt 0:00:13]} O-O {[%emt 0:00:15]} 9. dxc5 {[%emt 0:
00:04]} Nxc5 {[%emt 0:00:03]} 10. Nxe5 {[%emt 0:00:02]} Re8 {[%emt 0:00:05]}
11. Qg3 {[%emt 0:00:09]} d6 {[%emt 0:00:03]} 12. Ng4 {[%emt 0:00:08]} Bxg4 {
[%emt 0:00:08]} 13. Bxe8 {[%emt 0:00:05]} Be6 {[%emt 0:00:10]} 14. Bb5 {
[%emt 0:00:06]} a6 {[%emt 0:00:04]} 15. Bd3 {[%emt 0:00:11]} Nxd3 {[%emt 0:00:
15]} 16. cxd3 {[%emt 0:00:06]} c5 {[%emt 0:00:11]} 17. b4 {[%emt 0:00:04]} c4 {
[%emt 0:00:00]} 18. dxc4 {[%emt 0:00:04]} Bxc4 {[%emt 0:00:05]} 19. Bb2 {
[%emt 0:00:05]} Bxf1 {[%emt 0:00:03]} 20. Qxg7# {[%emt 0:00:07]
VastMellowGhost won by checkmate} 1-0

[Event "Fast Chess"]
[Site "ChessKid.com"]
[Date "2020.04.06"]
[Round "3"]
[White "Sasse, Gabriel"]
[Black "Georgiev, Maximilian"]
[Result "0-1"]
[ECO "C50"]
[WhiteElo "1281"]
[BlackElo "1349"]
[PlyCount "132"]
[EventDate "2020.??.??"]
[TimeControl "900"]
[WhiteClock "0:10:53"]
[BlackClock "0:11:09"]

1. e4 {[%emt 0:00:01]} e5 {[%emt 0:00:02]} 2. Nf3 {[%emt 0:00:02]} Nc6 {
[%emt 0:00:01]} 3. Bc4 {[%emt 0:00:01]} h6 {[%emt 0:00:01]} 4. h3 {[%emt 0:00:
03]} Nf6 {[%emt 0:00:02]} 5. Nc3 {[%emt 0:00:01]} Bb4 {[%emt 0:00:01]} 6. O-O {
[%emt 0:00:01]} a6 {[%emt 0:00:04]} 7. a3 {[%emt 0:00:02]} Ba5 {[%emt 0:00:01]}
8. b4 {[%emt 0:00:02]} Bb6 {[%emt 0:00:00]} 9. Nd5 {[%emt 0:00:03]} Nxd5 {
[%emt 0:00:03]} 10. exd5 {[%emt 0:00:01]} Nd4 {[%emt 0:00:05]} 11. Nxd4 {
[%emt 0:00:03]} Bxd4 {[%emt 0:00:01]} 12. c3 {[%emt 0:00:03]} Bb6 {[%emt 0:00:
02]} 13. a4 {[%emt 0:00:06]} O-O {[%emt 0:00:03]} 14. Qf3 {[%emt 0:00:05]} c6 {
[%emt 0:00:08]} 15. dxc6 {[%emt 0:00:02]} dxc6 {[%emt 0:00:02]} 16. Qg3 {
[%emt 0:00:01]} Qd6 {[%emt 0:00:17]} 17. d3 {[%emt 0:00:05]} Bd7 {[%emt 0:00:
08]} 18. d4 {[%emt 0:00:11]} Bc7 {[%emt 0:00:06]} 19. dxe5 {[%emt 0:00:02]}
Qxe5 {[%emt 0:00:02]} 20. Bxh6 {[%emt 0:00:04]} Qxg3 {[%emt 0:00:03]} 21. fxg3
{[%emt 0:00:03]} gxh6 {[%emt 0:00:01]} 22. Rf6 {[%emt 0:00:05]} Bxg3 {[%emt 0:
00:07]} 23. Rd1 {[%emt 0:00:03]} Be5 {[%emt 0:00:07]} 24. Rxh6 {[%emt 0:00:04]}
Bg7 {[%emt 0:00:08]} 25. Rhd6 {[%emt 0:00:07]} Be6 {[%emt 0:00:04]} 26. Bxe6 {
[%emt 0:00:05]} fxe6 {[%emt 0:00:01]} 27. Rxe6 {[%emt 0:00:02]} Bxc3 {[%emt 0:
00:02]} 28. Rdd6 {[%emt 0:00:05]} Bxb4 {[%emt 0:00:07]} 29. Rd5 {[%emt 0:00:03]
} Kf7 {[%emt 0:00:05]} 30. Ree5 {[%emt 0:00:06]} Bc3 {[%emt 0:00:12]} 31. Rf5+
{[%emt 0:00:01]} Bf6 {[%emt 0:00:01]} 32. Rd6 {[%emt 0:00:03]} Ke7 {[%emt 0:00:
04]} 33. Rd3 {[%emt 0:00:09]} Bg7 {[%emt 0:00:04]} 34. Re3+ {[%emt 0:00:05]}
Kd6 {[%emt 0:00:04]} 35. Rd3+ {[%emt 0:00:07]} Ke6 {[%emt 0:00:03]} 36. Rff3 {
[%emt 0:00:04]} Rxf3 {[%emt 0:00:04]} 37. gxf3 {[%emt 0:00:02]} Rh8 {[%emt 0:
00:05]} 38. Re3+ {[%emt 0:00:02]} Be5 {[%emt 0:00:06]} 39. f4 {[%emt 0:00:02]}
Kd5 {[%emt 0:00:09]} 40. Rxe5+ {[%emt 0:00:03]} Kd4 {[%emt 0:00:03]} 41. Re7 {
[%emt 0:00:03]} b5 {[%emt 0:00:03]} 42. axb5 {[%emt 0:00:04]} axb5 {[%emt 0:00:
03]} 43. Rb7 {[%emt 0:00:03]} Rxh3 {[%emt 0:00:05]} 44. f5 {[%emt 0:00:01]} Rf3
{[%emt 0:00:05]} 45. Rf7 {[%emt 0:00:04]} Ke5 {[%emt 0:00:02]} 46. Rc7 {
[%emt 0:00:04]} Rxf5 {[%emt 0:00:02]} 47. Rxc6 {[%emt 0:00:02]} Kd4 {[%emt 0:
00:02]} 48. Kg2 {[%emt 0:00:03]} Rf8 {[%emt 0:00:12]} 49. Kg3 {[%emt 0:00:06]}
Rb8 {[%emt 0:00:03]} 50. Kf4 {[%emt 0:00:04]} b4 {[%emt 0:00:02]} 51. Rd6+ {
[%emt 0:00:01]} Kc5 {[%emt 0:00:03]} 52. Ke5 {[%emt 0:00:03]} b3 {[%emt 0:00:
02]} 53. Rd1 {[%emt 0:00:02]} b2 {[%emt 0:00:02]} 54. Rb1 {[%emt 0:00:05]} Kc4
{[%emt 0:00:03]} 55. Ke4 {[%emt 0:00:04]} Kc3 {[%emt 0:00:01]} 56. Ke3 {
[%emt 0:00:08]} Kc2 {[%emt 0:00:01]} 57. Re1 {[%emt 0:00:02]} b1=Q {[%emt 0:00:
02]} 58. Re2+ {[%emt 0:00:02]} Kd1 {[%emt 0:00:05]} 59. Kf2 {[%emt 0:00:06]}
Qf5+ {[%emt 0:00:04]} 60. Ke3 {[%emt 0:00:04]} Re8+ {[%emt 0:00:04]} 61. Kd4 {
[%emt 0:00:06]} Rxe2 {[%emt 0:00:03]} 62. Kc4 {[%emt 0:00:02]} Rd2 {[%emt 0:00:
03]} 63. Kc3 {[%emt 0:00:07]} Rd8 {[%emt 0:00:03]} 64. Kb2 {[%emt 0:00:03]} Rc8
{[%emt 0:00:04]} 65. Kb3 {[%emt 0:00:02]} Qb5+ {[%emt 0:00:01]} 66. Ka3 {
[%emt 0:00:02]} Ra8# {[%emt 0:00:02] TallSnazzyBall won by checkmate} 0-1

[Event "Fast Chess"]
[Site "ChessKid.com"]
[Date "2020.04.06"]
[Round "3"]
[White "Dai, Lana"]
[Black "Hlinka, Patrick"]
[Result "1-0"]
[ECO "C25"]
[WhiteElo "1232"]
[BlackElo "1105"]
[PlyCount "109"]
[EventDate "2020.??.??"]
[TimeControl "900"]
[WhiteClock "0:08:47"]
[BlackClock "0:07:39"]

1. e4 {[%emt 0:00:00]} e5 {[%emt 0:00:01]} 2. Nc3 {[%emt 0:00:05]} Bc5 {
[%emt 0:00:03]} 3. Bc4 {[%emt 0:00:02]} d6 {[%emt 0:00:06]} 4. h3 {[%emt 0:00:
04]} Qh4 {[%emt 0:00:05]} 5. g3 {[%emt 0:00:14]} Qf6 {[%emt 0:00:04]} 6. Nf3 {
[%emt 0:00:05]} g5 {[%emt 0:00:18]} 7. d3 {[%emt 0:00:06]} g4 {[%emt 0:00:20]}
8. Bg5 {[%emt 0:00:09]} Qg6 {[%emt 0:00:10]} 9. hxg4 {[%emt 0:00:09]} Bxg4 {
[%emt 0:00:05]} 10. Bh4 {[%emt 0:00:10]} Bxf3 {[%emt 0:00:05]} 11. Qxf3 {
[%emt 0:00:18]} Nc6 {[%emt 0:00:13]} 12. Nd5 {[%emt 0:00:08]} Rc8 {[%emt 0:00:
10]} 13. Nc3 {[%emt 0:00:12]} Nce7 {[%emt 0:00:06]} 14. Nd5 {[%emt 0:00:15]} f5
{[%emt 0:00:07]} 15. exf5 {[%emt 0:00:03]} Nxf5 {[%emt 0:00:03]} 16. Ne7 {
[%emt 0:00:07]} Nfxe7 {[%emt 0:00:06]} 17. Bxe7 {[%emt 0:00:13]} Kxe7 {[%emt 0:
00:02]} 18. O-O-O {[%emt 0:00:09]} Nf6 {[%emt 0:00:01]} 19. Rh3 {[%emt 0:00:23]
} e4 {[%emt 0:00:05]} 20. dxe4 {[%emt 0:00:04]} Nxe4 {[%emt 0:00:03]} 21. Rh4 {
[%emt 0:00:17]} Rhf8 {[%emt 0:00:05]} 22. Rxe4+ {[%emt 0:00:07]} Kd7 {[%emt 0:
00:15]} 23. Qe2 {[%emt 0:00:17]} Rce8 {[%emt 0:00:04]} 24. Rxe8 {[%emt 0:00:08]
} Rxe8 {[%emt 0:00:04]} 25. Qf3 {[%emt 0:00:11]} c6 {[%emt 0:00:10]} 26. Bd3 {
[%emt 0:00:13]} Qg8 {[%emt 0:00:23]} 27. Bf5+ {[%emt 0:00:16]} Kd8 {[%emt 0:00:
07]} 28. Qh1 {[%emt 0:00:17]} Bb4 {[%emt 0:00:08]} 29. Qh4+ {[%emt 0:00:06]}
Kc7 {[%emt 0:00:06]} 30. Qxb4 {[%emt 0:00:04]} Qg5+ {[%emt 0:00:13]} 31. Kb1 {
[%emt 0:00:19]} Qxf5 {[%emt 0:00:03]} 32. Qxd6+ {[%emt 0:00:06]} Kc8 {[%emt 0:
00:05]} 33. Qa3 {[%emt 0:00:22]} Rd8 {[%emt 0:00:11]} 34. Rxd8+ {[%emt 0:00:06]
} Kxd8 {[%emt 0:00:03]} 35. Qd6+ {[%emt 0:00:01]} Ke8 {[%emt 0:00:06]} 36. Qb8+
{[%emt 0:00:05]} Ke7 {[%emt 0:00:07]} 37. Qxb7+ {[%emt 0:00:02]} Kd6 {[%emt 0:
00:01]} 38. Qxa7 {[%emt 0:00:08]} Qh3 {[%emt 0:00:04]} 39. Qd4+ {[%emt 0:00:05]
} Kc7 {[%emt 0:00:06]} 40. Qe5+ {[%emt 0:00:02]} Kb6 {[%emt 0:00:03]} 41. Qd4+
{[%emt 0:00:02]} Kb7 {[%emt 0:00:02]} 42. Qb4+ {[%emt 0:00:07]} Kc7 {[%emt 0:
00:04]} 43. a4 {[%emt 0:00:03]} Qf1+ {[%emt 0:00:05]} 44. Ka2 {[%emt 0:00:01]}
Qxf2 {[%emt 0:00:10]} 45. Qe7+ {[%emt 0:00:03]} Kb6 {[%emt 0:00:04]} 46. Qb4+ {
[%emt 0:00:10]} Kc7 {[%emt 0:00:05]} 47. Qa5+ {[%emt 0:00:09]} Kd7 {[%emt 0:00:
07]} 48. Qa7+ {[%emt 0:00:04]} Kd6 {[%emt 0:00:03]} 49. Qxf2 {[%emt 0:00:03]}
c5 {[%emt 0:00:33]} 50. Qf4+ {[%emt 0:00:06]} Kc6 {[%emt 0:00:09]} 51. a5 {
[%emt 0:00:03]} Kb7 {[%emt 0:00:03]} 52. Qf7+ {[%emt 0:00:05]} Ka6 {[%emt 0:00:
06]} 53. Qc4+ {[%emt 0:00:15]} Kxa5 {[%emt 0:00:04]} 54. Qxc5+ {[%emt 0:00:01]}
Ka4 {[%emt 0:00:03]} 55. b3# {[%emt 0:00:03] TopBrownCave won by checkmate} 1-0

[Event "Fast Chess"]
[Site "ChessKid.com"]
[Date "2020.04.06"]
[Round "3"]
[White "Hessenberger, Oliver"]
[Black "Li, Tobias"]
[Result "0-1"]
[ECO "C50"]
[WhiteElo "1088"]
[BlackElo "1225"]
[PlyCount "50"]
[EventDate "2020.??.??"]
[TimeControl "900"]
[WhiteClock "0:11:43"]
[BlackClock "0:11:12"]

1. e4 {[%emt 0:00:03]} e5 {[%emt 0:00:01]} 2. Nf3 {[%emt 0:00:01]} Nc6 {
[%emt 0:00:01]} 3. Bc4 {[%emt 0:00:04]} Bc5 {[%emt 0:00:07]} 4. Ng5 {[%emt 0:
00:02]} Qxg5 {[%emt 0:00:08]} 5. Qf3 {[%emt 0:00:08]} Nf6 {[%emt 0:00:05]} 6.
O-O {[%emt 0:00:06]} O-O {[%emt 0:00:02]} 7. d4 {[%emt 0:00:04]} Qg6 {[%emt 0:
00:10]} 8. dxc5 {[%emt 0:00:02]} Nxe4 {[%emt 0:00:17]} 9. Bb5 {[%emt 0:00:14]}
Nxc5 {[%emt 0:00:11]} 10. Be3 {[%emt 0:00:13]} Ne6 {[%emt 0:00:15]} 11. Bxc6 {
[%emt 0:00:07]} bxc6 {[%emt 0:00:04]} 12. Nc3 {[%emt 0:00:16]} d6 {[%emt 0:00:
06]} 13. Ne4 {[%emt 0:00:09]} d5 {[%emt 0:00:09]} 14. Nc5 {[%emt 0:00:12]} Nxc5
{[%emt 0:00:28]} 15. Bxc5 {[%emt 0:00:04]} Re8 {[%emt 0:00:02]} 16. Rfe1 {
[%emt 0:00:03]} Qxc2 {[%emt 0:00:04]} 17. Rac1 {[%emt 0:00:14]} Qxb2 {[%emt 0:
00:13]} 18. Ra1 {[%emt 0:00:37]} Be6 {[%emt 0:00:09]} 19. Qh5 {[%emt 0:00:10]}
Qc2 {[%emt 0:00:08]} 20. Rec1 {[%emt 0:00:19]} Qg6 {[%emt 0:00:07]} 21. Qxg6 {
[%emt 0:00:17]} hxg6 {[%emt 0:00:06]} 22. Rab1 {[%emt 0:00:00]} Rab8 {[%emt 0:
00:14]} 23. Rxb8 {[%emt 0:00:03]} Rxb8 {[%emt 0:00:02]} 24. Be7 {[%emt 0:00:16]
} Rb7 {[%emt 0:00:00]} 25. Rxc6 {[%emt 0:00:04]} Rb1+ {[%emt 0:00:08]
OnlyHungryKiwi won by resignation} 0-1

[Event "Fast Chess"]
[Site "ChessKid.com"]
[Date "2020.04.06"]
[Round "3"]
[White "Li, Patrick"]
[Black "Hlinka, Patricia"]
[Result "1-0"]
[ECO "C41"]
[WhiteElo "930"]
[BlackElo "980"]
[PlyCount "79"]
[EventDate "2020.??.??"]
[TimeControl "900"]
[WhiteClock "0:10:12"]
[BlackClock "0:11:47"]

1. e4 {[%emt 0:00:00]} e5 {[%emt 0:00:34]} 2. Nf3 {[%emt 0:00:05]} d6 {[%emt 0:
00:04]} 3. Nc3 {[%emt 0:00:03]} f6 {[%emt 0:00:03]} 4. Bc4 {[%emt 0:00:03]} Nh6
{[%emt 0:00:03]} 5. Nh4 {[%emt 0:00:04]} b5 {[%emt 0:00:08]} 6. O-O {[%emt 0:
00:03]} bxc4 {[%emt 0:00:00]} 7. Qh5+ {[%emt 0:00:07]} Kd7 {[%emt 0:00:03]} 8.
Nf5 {[%emt 0:00:07]} a5 {[%emt 0:00:07]} 9. d3 {[%emt 0:00:06]} cxd3 {[%emt 0:
00:02]} 10. cxd3 {[%emt 0:00:03]} a4 {[%emt 0:00:04]} 11. Bxh6 {[%emt 0:00:04]}
gxh6 {[%emt 0:00:06]} 12. Nxh6 {[%emt 0:00:02]} Bxh6 {[%emt 0:00:12]} 13. Qxh6
{[%emt 0:00:04]} Qg8 {[%emt 0:00:12]} 14. f4 {[%emt 0:00:07]} exf4 {[%emt 0:00:
01]} 15. Qxf4 {[%emt 0:00:03]} f5 {[%emt 0:00:05]} 16. Qxf5+ {[%emt 0:00:04]}
Kd8 {[%emt 0:00:09]} 17. Qd5 {[%emt 0:00:18]} Ra5 {[%emt 0:00:06]} 18. Qxa5 {
[%emt 0:00:05]} h5 {[%emt 0:00:14]} 19. Qxa4 {[%emt 0:00:05]} h4 {[%emt 0:00:
08]} 20. Qb3 {[%emt 0:00:09]} Na6 {[%emt 0:00:03]} 21. Qxg8+ {[%emt 0:00:04]}
Rxg8 {[%emt 0:00:04]} 22. Ne2 {[%emt 0:00:06]} c5 {[%emt 0:00:09]} 23. Nf4 {
[%emt 0:00:04]} Rf8 {[%emt 0:00:10]} 24. Ne6+ {[%emt 0:00:07]} Kd7 {[%emt 0:00:
07]} 25. Rxf8 {[%emt 0:00:05]} Kxe6 {[%emt 0:00:00]} 26. Rxc8 {[%emt 0:00:04]}
Nb4 {[%emt 0:00:11]} 27. a3 {[%emt 0:00:05]} Na2 {[%emt 0:00:00]} 28. Rxa2 {
[%emt 0:00:04]} c4 {[%emt 0:00:17]} 29. dxc4 {[%emt 0:00:07]} Ke7 {[%emt 0:00:
10]} 30. a4 {[%emt 0:00:06]} Kd7 {[%emt 0:00:00]} 31. Rh8 {[%emt 0:00:07]} Ke7
{[%emt 0:00:13]} 32. a5 {[%emt 0:00:03]} Kf7 {[%emt 0:00:05]} 33. a6 {[%emt 0:
00:01]} Ke7 {[%emt 0:00:06]} 34. a7 {[%emt 0:00:00]} Kd7 {[%emt 0:00:00]} 35.
a8=Q {[%emt 0:00:04]} d5 {[%emt 0:00:12]} 36. Qd8+ {[%emt 0:00:03]} Kc6 {
[%emt 0:00:13]} 37. Rh6+ {[%emt 0:00:04]} Kc5 {[%emt 0:00:06]} 38. Qd6+ {
[%emt 0:00:04]} Kxc4 {[%emt 0:00:08]} 39. Qxd5+ {[%emt 0:00:08]} Kb4 {[%emt 0:
00:15]} 40. Rb6# {[%emt 0:00:04] WideClassyQuiz won by checkmate} 1-0

[Event "Fast Chess"]
[Site "ChessKid.com"]
[Date "2020.04.06"]
[Round "4"]
[White "Georgiev, Maximilian"]
[Black "Li, Tobias"]
[Result "0-1"]
[ECO "C48"]
[WhiteElo "1339"]
[BlackElo "1238"]
[PlyCount "104"]
[EventDate "2020.??.??"]
[TimeControl "900"]
[WhiteClock "0:08:59"]
[BlackClock "0:09:52"]

1. e4 {[%emt 0:00:02]} e5 {[%emt 0:00:02]} 2. Nf3 {[%emt 0:00:01]} Nc6 {
[%emt 0:00:01]} 3. Bb5 {[%emt 0:00:01]} Bc5 {[%emt 0:00:03]} 4. Bxc6 {[%emt 0:
00:02]} dxc6 {[%emt 0:00:01]} 5. O-O {[%emt 0:00:02]} Nf6 {[%emt 0:00:04]} 6.
Nc3 {[%emt 0:00:02]} O-O {[%emt 0:00:04]} 7. h3 {[%emt 0:00:03]} Re8 {[%emt 0:
00:05]} 8. a3 {[%emt 0:00:03]} Be6 {[%emt 0:00:11]} 9. d3 {[%emt 0:00:03]} h6 {
[%emt 0:00:24]} 10. b4 {[%emt 0:00:06]} Bb6 {[%emt 0:00:03]} 11. Na4 {[%emt 0:
00:05]} Qd7 {[%emt 0:00:38]} 12. Nxb6 {[%emt 0:00:02]} cxb6 {[%emt 0:00:02]}
13. d4 {[%emt 0:00:06]} exd4 {[%emt 0:00:17]} 14. Nxd4 {[%emt 0:00:02]} Nxe4 {
[%emt 0:00:08]} 15. Nxe6 {[%emt 0:00:14]} Qxd1 {[%emt 0:00:10]} 16. Rxd1 {
[%emt 0:00:02]} Rxe6 {[%emt 0:00:03]} 17. Re1 {[%emt 0:00:07]} Ng5 {[%emt 0:00:
03]} 18. Rxe6 {[%emt 0:00:03]} Nxe6 {[%emt 0:00:02]} 19. Bd2 {[%emt 0:00:17]}
Rd8 {[%emt 0:00:08]} 20. Bc3 {[%emt 0:00:08]} Nf4 {[%emt 0:00:06]} 21. Be5 {
[%emt 0:00:15]} Ne6 {[%emt 0:00:11]} 22. Re1 {[%emt 0:00:05]} Kf8 {[%emt 0:00:
26]} 23. Bg3 {[%emt 0:00:09]} Ng5 {[%emt 0:00:05]} 24. Bh4 {[%emt 0:00:09]} Rd7
{[%emt 0:00:12]} 25. f4 {[%emt 0:00:06]} Ne6 {[%emt 0:00:06]} 26. f5 {[%emt 0:
00:04]} Nd4 {[%emt 0:00:21]} 27. f6 {[%emt 0:00:07]} gxf6 {[%emt 0:00:04]} 28.
Bxf6 {[%emt 0:00:03]} Nxc2 {[%emt 0:00:05]} 29. Re2 {[%emt 0:00:06]} Nxa3 {
[%emt 0:00:18]} 30. Ra2 {[%emt 0:00:07]} Nb5 {[%emt 0:00:03]} 31. Rf2 {[%emt 0:
00:13]} Rd1+ {[%emt 0:00:08]} 32. Kh2 {[%emt 0:00:02]} Rd6 {[%emt 0:00:05]} 33.
Be5 {[%emt 0:00:08]} Re6 {[%emt 0:00:05]} 34. Bg3 {[%emt 0:00:09]} Kg7 {
[%emt 0:00:07]} 35. Rf5 {[%emt 0:00:11]} Nd4 {[%emt 0:00:08]} 36. Be5+ {
[%emt 0:00:05]} Kg6 {[%emt 0:00:13]} 37. Bxd4 {[%emt 0:00:10]} Kxf5 {[%emt 0:
00:09]} 38. g4+ {[%emt 0:00:01]} Kg6 {[%emt 0:00:02]} 39. h4 {[%emt 0:00:04]}
Re4 {[%emt 0:00:03]} 40. h5+ {[%emt 0:00:08]} Kh7 {[%emt 0:00:03]} 41. Bc3 {
[%emt 0:00:09]} Rxg4 {[%emt 0:00:05]} 42. Kh3 {[%emt 0:00:03]} Rc4 {[%emt 0:00:
03]} 43. Be1 {[%emt 0:00:06]} a5 {[%emt 0:00:03]} 44. bxa5 {[%emt 0:00:03]}
bxa5 {[%emt 0:00:01]} 45. Bxa5 {[%emt 0:00:03]} b5 {[%emt 0:00:01]} 46. Bd2 {
[%emt 0:00:07]} b4 {[%emt 0:00:02]} 47. Kg3 {[%emt 0:00:04]} b3 {[%emt 0:00:01]
} 48. Kf3 {[%emt 0:00:23]} b2 {[%emt 0:00:02]} 49. Ke3 {[%emt 0:00:03]} b1=Q {
[%emt 0:00:02]} 50. Ba5 {[%emt 0:00:08]} Qe4+ {[%emt 0:00:02]} 51. Kd2 {
[%emt 0:00:03]} Rc2+ {[%emt 0:00:08]} 52. Kd1 {[%emt 0:00:03]} Qe2# {[%emt 0:
00:04] OnlyHungryKiwi won by checkmate} 0-1

[Event "Fast Chess"]
[Site "ChessKid.com"]
[Date "2020.04.06"]
[Round "4"]
[White "Dai, Lana"]
[Black "Hessenberger, Oliver"]
[Result "1-0"]
[ECO "C42"]
[WhiteElo "1237"]
[BlackElo "1079"]
[PlyCount "53"]
[EventDate "2020.??.??"]
[TimeControl "900"]
[WhiteClock "0:11:40"]
[BlackClock "0:10:34"]

1. e4 {[%emt 0:00:00]} e5 {[%emt 0:00:01]} 2. Nc3 {[%emt 0:00:06]} Bb4 {
[%emt 0:00:05]} 3. Bc4 {[%emt 0:00:04]} Bxc3 {[%emt 0:00:03]} 4. dxc3 {[%emt 0:
00:01]} Nf6 {[%emt 0:00:03]} 5. Nf3 {[%emt 0:00:04]} Nxe4 {[%emt 0:00:05]} 6.
Qe2 {[%emt 0:00:02]} Nf6 {[%emt 0:00:06]} 7. Nxe5 {[%emt 0:00:04]} O-O {
[%emt 0:00:10]} 8. Be3 {[%emt 0:00:18]} d6 {[%emt 0:00:07]} 9. Ng4 {[%emt 0:00:
07]} Bxg4 {[%emt 0:00:01]} 10. f3 {[%emt 0:00:06]} Bf5 {[%emt 0:00:08]} 11. g4
{[%emt 0:00:06]} Bg6 {[%emt 0:00:04]} 12. g5 {[%emt 0:00:02]} d5 {[%emt 0:00:
07]} 13. gxf6 {[%emt 0:00:08]} dxc4 {[%emt 0:00:05]} 14. fxg7 {[%emt 0:00:05]}
Kxg7 {[%emt 0:00:03]} 15. Bd4+ {[%emt 0:00:08]} Kg8 {[%emt 0:00:03]} 16. Qf2 {
[%emt 0:00:20]} Qe8+ {[%emt 0:00:16]} 17. Be3 {[%emt 0:00:13]} Qe6 {[%emt 0:00:
06]} 18. O-O-O {[%emt 0:00:12]} Qf5 {[%emt 0:00:15]} 19. Rd2 {[%emt 0:00:17]}
Nc6 {[%emt 0:00:04]} 20. Bc5 {[%emt 0:00:06]} Rfd8 {[%emt 0:00:08]} 21. Rxd8+ {
[%emt 0:00:04]} Rxd8 {[%emt 0:00:06]} 22. Re1 {[%emt 0:00:39]} b5 {[%emt 0:00:
17]} 23. h4 {[%emt 0:00:20]} h5 {[%emt 0:00:12]} 24. f4 {[%emt 0:00:17]} Rd5 {
[%emt 0:00:20]} 25. Re8+ {[%emt 0:00:10]} Kg7 {[%emt 0:00:07]} 26. Bd4+ {
[%emt 0:00:17]} Kh7 {[%emt 0:00:18]} 27. Rh8# {[%emt 0:00:10] TopBrownCave won
by checkmate} 1-0